bitfinex/quotes_BTCUSD_20251011
["timestamp","ask_amount","ask_price","bid_price","bid_amount"]
[1760148167782,0.0001513,111730.0,111720.0,0.74859625]
[1760148167988,0.0001513,111730.0,111720.0,0.64859626]
[1760148168192,0.0001513,111730.0,111720.0,0.74859625]
[1760148168427,0.0001513,111730.0,111720.0,0.74959625]
[1760148168679,0.0004,111740.0,111730.0,0.49515188]
[1760148168885,0.0004,111740.0,111730.0,0.68484468]
[1760148169086,0.0004,111740.0,111730.0,0.74846468]
[1760148169828,0.0004,111740.0,111730.0,0.68441028]
[1760148170023,0.0004,111740.0,111730.0,0.60841374]
[1760148170441,0.0004,111740.0,111730.0,0.70841373]
[1760148170652,0.0004,111740.0,111730.0,0.73341372]
[1760148170888,0.0004,111740.0,111730.0,0.73338541]
[1760148171491,0.0004,111740.0,111730.0,0.73238541]
[1760148171698,0.0004,111740.0,111730.0,0.68441028]
[1760148171964,0.0004,111740.0,111730.0,0.68641028]
[1760148172168,0.0004,111740.0,111730.0,0.86612877]
[1760148172371,0.0004,111740.0,111730.0,0.76612878]
[1760148172582,0.0004,111740.0,111730.0,0.86612877]
[1760148172937,0.0004,111740.0,111730.0,0.86412877]
[1760148173074,0.0004,111740.0,111730.0,0.86612877]
[1760148174314,0.0004,111740.0,111730.0,0.94513173]
[1760148174534,0.0004,111740.0,111730.0,1.04313172]
[1760148174819,0.00509185,111740.0,111730.0,1.04513172]
[1760148175230,0.0004,111740.0,111730.0,1.04513172]
[1760148176176,0.0004,111750.0,111740.0,0.67413881]
[1760148176396,0.0004,111750.0,111740.0,0.9614357]
[1760148176643,0.0004,111750.0,111740.0,1.0214557]
[1760148176860,0.0004,111750.0,111740.0,1.04597776]
[1760148177069,0.0004,111750.0,111740.0,1.0533431]
[1760148177470,0.0004,111750.0,111740.0,0.9417372]
[1760148177780,0.0004,111750.0,111740.0,1.56208176]
[1760148177983,0.0004,111750.0,111740.0,1.10619433]
[1760148178188,0.0004,111750.0,111740.0,1.38259838]
[1760148178388,0.0004,111750.0,111740.0,1.54619432]
[1760148178632,0.0004,111750.0,111740.0,1.00533315]
[1760148178839,0.0004,111750.0,111740.0,1.00833315]
[1760148178995,0.0004,111760.0,111750.0,0.67412279]
[1760148179197,0.0004,111760.0,111750.0,0.93223883]
[1760148179405,0.0004,111760.0,111750.0,0.76722667]
[1760148179616,0.0004,111780.0,111770.0,0.15515188]
[1760148179782,0.0004,111780.0,111770.0,0.62457946]
[1760148179783,0.00090454,111780.0,111770.0,0.62457946]
[1760148180002,0.00090454,111780.0,111770.0,0.75946943]
[1760148180216,0.00090454,111780.0,111770.0,0.72768579]
[1760148181031,0.00090454,111780.0,111770.0,0.90662468]
[1760148181279,0.00090454,111780.0,111770.0,0.92253682]
[1760148182008,0.0004,111790.0,111780.0,0.77407475]
[1760148182206,0.00055123,111790.0,111780.0,0.76589893]
[1760148182528,0.00055123,111790.0,111780.0,0.90484182]
[1760148182926,0.00055123,111790.0,111780.0,0.82591893]
[1760148183125,0.00055123,111790.0,111780.0,0.76235027]
[1760148183510,0.0004,111810.0,111800.0,0.64389085]
[1760148183718,0.0004,111820.0,111810.0,0.49515188]
[1760148183945,0.00058852,111850.0,111830.0,0.49515188]
[1760148184130,0.09423859,111880.0,111870.0,0.0301519]
[1760148184345,0.07083184,111920.0,111870.0,0.24508188]
[1760148184549,0.00174545,111880.0,111870.0,0.26412087]
[1760148184755,0.00015112,111900.0,111870.0,0.16412088]
[1760148184929,0.06812841,111920.0,111890.0,0.0131]
[1760148185100,0.06863204,111920.0,111910.0,0.08993]
[1760148185293,0.06863204,111920.0,111910.0,0.02991]
[1760148185294,0.00050363,111920.0,111910.0,0.02991]
[1760148185861,0.00050363,111920.0,111910.0,0.08993]
[1760148186063,0.00050363,111920.0,111910.0,0.13294]
[1760148186269,0.0004,111930.0,111920.0,0.0301519]
[1760148186482,0.0004,111930.0,111920.0,0.0726519]
[1760148186686,0.0004,111930.0,111920.0,0.1326719]
[1760148187093,0.0004,111970.0,111920.0,0.1326719]
[1760148187298,0.14176108,111970.0,111930.0,0.05429]
[1760148187523,0.04662108,111970.0,111930.0,0.01219]
[1760148187718,0.00055108,111970.0,111960.0,0.08993]
[1760148187917,0.20753108,111970.0,111930.0,0.01219]
[1760148188126,0.04607,111960.0,111930.0,0.01219]
[1760148188335,0.14515,111960.0,111930.0,0.01219]
[1760148188528,0.11311,111940.0,111920.0,0.001]
[1760148188731,0.04863,111940.0,111910.0,0.02991]
[1760148188942,0.04863,111930.0,111910.0,0.02991]
[1760148189151,0.04863,111940.0,111920.0,0.06208]
[1760148189366,0.04863,111930.0,111910.0,0.02991]
[1760148189565,0.21269,111930.0,111890.0,0.12572184]
[1760148189776,0.14821,111920.0,111890.0,0.01269]
[1760148189933,0.14821,111920.0,111870.0,0.07251]
[1760148189934,0.04863,111900.0,111870.0,0.02991]
[1760148190155,0.93350855,111910.0,111880.0,0.07043184]
[1760148190358,0.93350855,111910.0,111890.0,0.01269]
[1760148190561,0.93350855,111910.0,111870.0,0.03137233]
[1760148190761,0.14821,111900.0,111870.0,0.00146233]
[1760148191140,0.04863,111900.0,111880.0,0.01269]
[1760148191373,0.88487855,111910.0,111890.0,0.0426]
[1760148191574,0.001,111910.0,111900.0,0.07251]
[1760148191776,0.001,111910.0,111900.0,0.02991]
[1760148192369,0.04863,111920.0,111900.0,0.02991]
[1760148192795,0.14821,111920.0,111880.0,0.05529]
[1760148192998,0.04863,111920.0,111890.0,0.0426]
[1760148193184,0.04863,111920.0,111900.0,0.02991]
[1760148193588,0.04863,111930.0,111900.0,0.02991]
[1760148194290,0.04863,111940.0,111920.0,0.01269]
[1760148194615,0.04863,111950.0,111920.0,0.05529]
[1760148194833,0.14861,111970.0,111940.0,0.02991]
[1760148195038,0.14821,111960.0,111920.0,0.05529]
[1760148195263,0.14861,111970.0,111940.0,0.02991]
[1760148195465,0.04863,111960.0,111940.0,0.02991]
[1760148195673,0.04918108,111970.0,111940.0,0.07251]
[1760148195870,0.00055108,111970.0,111940.0,0.07251]
[1760148196170,0.00055108,111970.0,111960.0,0.01269]
[1760148196527,0.00578262,111970.0,111960.0,0.05529]
[1760148197178,0.00578262,111970.0,111960.0,0.01269]
[1760148197815,0.05441262,111970.0,111960.0,0.001]
[1760148198002,0.16221853,111970.0,111960.0,0.001]
[1760148198294,0.16221853,111970.0,111930.0,0.02991]
[1760148198539,0.04863,111960.0,111930.0,0.02991]
[1760148198685,0.00822591,111960.0,111930.0,0.07251]
[1760148198895,0.04863,111950.0,111930.0,0.02991]
[1760148199095,0.05685591,111950.0,111930.0,0.02991]
[1760148199626,0.04863,111940.0,111910.0,0.01269]
[1760148199826,0.00822591,111940.0,111910.0,0.05529]
[1760148200029,0.04863,111950.0,111910.0,0.05529]
[1760148200030,0.15643591,111950.0,111910.0,0.05529]
[1760148200456,0.00822591,111950.0,111940.0,0.09199]
[1760148200613,0.00877699,111970.0,111940.0,0.13459]
[1760148200816,0.00055108,111970.0,111960.0,0.01269]
[1760148201014,0.00055108,111970.0,111960.0,0.00686872]
[1760148201457,0.00055108,111970.0,111960.0,0.10249872]
[1760148202626,0.00055108,111970.0,111960.0,0.04364872]
[1760148203131,0.00055108,111970.0,111960.0,0.00686872]
[1760148203741,0.00055108,111970.0,111960.0,0.04364872]
[1760148203949,0.00578262,111970.0,111960.0,0.04464872]
[1760148204151,0.00578262,111970.0,111960.0,0.07480062]
[1760148204351,0.01400853,111970.0,111960.0,0.07480062]
[1760148204793,0.01400853,111970.0,111960.0,0.1998006]
[1760148205130,0.02612825,112000.0,111970.0,0.3701519]
[1760148205331,0.0055,112050.0,112010.0,0.0301519]
[1760148205528,0.00600354,112050.0,112020.0,0.00482]
[1760148205710,0.00600354,112050.0,112010.0,0.02142505]
[1760148206113,0.00600354,112050.0,112000.0,0.34]
[1760148206791,0.00600354,112050.0,111990.0,0.12499998]
[1760148206964,0.05463354,112050.0,111990.0,0.43999999]
[1760148207163,0.38863,112040.0,111990.0,0.34]
[1760148207344,0.38863,112040.0,111980.0,0.17043183]
[1760148207733,0.38863,112040.0,111990.0,0.0301519]
[1760148207943,0.14821,112030.0,111970.0,0.48883423]
[1760148208151,0.34,112020.0,111960.0,0.07043184]
[1760148208351,0.34,112020.0,111980.0,0.07043184]
[1760148208688,0.34,112020.0,111990.0,0.0301519]
[1760148208900,0.04863,112030.0,111980.0,0.0301519]
[1760148209108,0.04863,112040.0,111970.0,0.43999999]
[1760148209460,0.04863,112040.0,111990.0,0.0301519]
[1760148210017,0.14821,112040.0,111990.0,0.0301519]
[1760148210233,0.14821,112040.0,111980.0,0.07043184]
[1760148210454,0.04863,112040.0,111980.0,0.07043184]
[1760148210842,0.04863,112030.0,111980.0,0.07043184]
[1760148211063,0.14821,112030.0,111980.0,0.07043184]
[1760148211259,0.00116189,111990.0,111980.0,0.07043184]
[1760148211918,0.00116189,111990.0,111960.0,0.07138954]
[1760148212119,0.04863,112010.0,111960.0,0.07138954]
[1760148212329,0.04863,111990.0,111960.0,0.0009577]
[1760148212929,0.14821,111980.0,111960.0,0.0009577]
[1760148213130,0.04863,111980.0,111960.0,0.0009577]
[1760148213254,0.04863,111990.0,111960.0,0.0009577]
[1760148213458,0.04863,111990.0,111980.0,0.001]
[1760148213660,0.04863,112000.0,111980.0,0.001]
[1760148213884,0.04863,112000.0,111960.0,0.00027737]
[1760148214133,0.14821,112000.0,111960.0,0.00027737]
[1760148214336,0.04863,111990.0,111960.0,0.00027737]
[1760148214488,0.15289318,111990.0,111960.0,0.00027737]
[1760148214695,0.05331318,111990.0,111960.0,0.00027737]
[1760148214901,0.93819173,111990.0,111960.0,0.00027737]
[1760148215106,0.88956173,111990.0,111960.0,0.00027737]
[1760148215469,0.00468318,111990.0,111960.0,0.00027737]
[1760148215686,0.00468318,111990.0,111960.0,0.07070921]
[1760148215891,0.00468318,111990.0,111960.0,0.00027737]
[1760148216300,0.00468318,111990.0,111960.0,0.02411162]
[1760148216503,0.00468318,111990.0,111970.0,0.0301519]
[1760148216716,0.00468318,111990.0,111970.0,0.0857505]
[1760148216928,0.00468318,111990.0,111980.0,0.15398614]
[1760148217131,0.00468318,111990.0,111980.0,0.18575049]
[1760148217333,0.00468318,111990.0,111980.0,0.18580241]
[1760148217768,0.00584507,111990.0,111980.0,0.18580241]
[1760148217984,0.14479881,112060.0,111990.0,0.0301519]
[1760148218189,0.04863,112050.0,112000.0,0.14116]
[1760148218403,0.00468158,112040.0,112010.0,0.14116]
[1760148218617,0.00468158,112040.0,112020.0,0.14116]
[1760148218835,0.00468158,112040.0,112030.0,0.04278]
[1760148219092,0.00468158,112040.0,112030.0,0.14116]
[1760148219304,0.00050345,112060.0,112030.0,0.14116]
[1760148219511,0.00050345,112060.0,112050.0,0.04278]
[1760148220125,0.00150345,112060.0,112030.0,0.04278]
[1760148220704,0.00050345,112060.0,112030.0,0.04278]
[1760148220909,0.04618345,112060.0,112030.0,0.04278]
[1760148221132,0.00050345,112060.0,112030.0,0.04278]
[1760148221575,0.13834345,112060.0,112030.0,0.04278]
[1760148221790,0.13784,112050.0,112020.0,0.04278]
[1760148222112,0.04568,112050.0,112020.0,0.04278]
[1760148222237,0.00050345,112060.0,112020.0,0.04278]
[1760148222440,0.00050345,112060.0,112030.0,0.0181]
[1760148222681,0.00050345,112060.0,112030.0,0.08853184]
[1760148223085,0.00050345,112060.0,112040.0,0.0482519]
[1760148223484,0.00050345,112060.0,112050.0,0.0181]
[1760148223691,0.00092345,112080.0,112060.0,0.0301519]
[1760148223902,0.00107438,112080.0,112070.0,0.49515188]
[1760148224132,0.0002,112090.0,112080.0,0.49515188]
[1760148224299,0.0002,112090.0,112080.0,0.83184315]
[1760148224513,0.0002,112090.0,112080.0,0.86361946]
[1760148224679,0.02727655,112130.0,112120.0,0.59515187]
[1760148225045,0.0274274,112130.0,112120.0,0.81746583]
[1760148225252,0.0274274,112130.0,112120.0,0.61417387]
[1760148225514,0.0274274,112130.0,112120.0,0.6931956]
[1760148225723,0.0274274,112130.0,112120.0,0.52077841]
[1760148225943,0.0274274,112130.0,112120.0,0.51417388]
[1760148226171,0.0274274,112130.0,112120.0,0.53788442]
[1760148226383,0.0224274,112130.0,112120.0,0.89648339]
[1760148226657,0.0001024,112160.0,112150.0,0.15515188]
[1760148226864,0.0001024,112160.0,112150.0,0.53778242]
[1760148227270,0.0001024,112160.0,112150.0,0.64565192]
[1760148227480,0.0001024,112160.0,112150.0,0.64555569]
[1760148227686,0.0001024,112160.0,112150.0,0.53771154]
[1760148227893,0.001,112220.0,112150.0,0.51417388]
[1760148228098,0.00515079,112170.0,112150.0,0.51617388]
[1760148228277,0.00515079,112170.0,112160.0,0.09999999]
[1760148228929,0.00515079,112170.0,112160.0,0.0301519]
[1760148229320,0.01626977,112170.0,112150.0,0.34]
[1760148229560,0.00515079,112170.0,112160.0,0.13015189]
[1760148229770,0.00515079,112170.0,112160.0,0.67476877]
[1760148229982,0.00515079,112170.0,112160.0,0.57476878]
[1760148230423,0.00515079,112170.0,112160.0,0.91476878]
[1760148230862,0.00515079,112170.0,112160.0,0.88661688]
[1760148231070,0.00515079,112170.0,112160.0,0.54661688]
[1760148231491,0.00515079,112170.0,112160.0,0.002]
[1760148232501,0.00515079,112170.0,112150.0,0.54461688]
[1760148232735,0.14639079,112170.0,112160.0,0.001]
[1760148232925,0.48130269,112170.0,112160.0,0.001]
[1760148233145,0.0301519,112160.0,112110.0,0.07043184]
[1760148233266,0.14124,112150.0,112110.0,0.07043184]
[1760148233674,0.446,112150.0,112100.0,0.54461688]
[1760148233883,0.09524,112140.0,112110.0,0.07043184]
[1760148234294,0.54124,112130.0,112090.0,0.07043184]
[1760148234717,0.446,112130.0,112080.0,0.54461688]
[1760148234937,0.09524,112120.0,112080.0,0.54461688]
[1760148235140,0.446,112130.0,112090.0,0.07043184]
[1760148235292,0.98011855,112140.0,112090.0,0.07216813]
[1760148235522,0.4,112130.0,112090.0,0.07231898]
[1760148235695,0.49524,112130.0,112090.0,0.00088714]
[1760148236007,0.09524,112120.0,112090.0,0.00015085]
[1760148236206,0.98011855,112120.0,112090.0,0.00015085]
[1760148236406,0.88487855,112120.0,112090.0,0.00015085]
[1760148236674,0.98011855,112120.0,112090.0,0.00015085]
[1760148237319,0.88487855,112120.0,112090.0,0.00015085]
[1760148237525,0.14124,112110.0,112090.0,0.00015085]
[1760148237938,0.49524,112100.0,112090.0,0.00015085]
[1760148238115,1.38011855,112100.0,112090.0,0.00015085]
[1760148238948,1.41027045,112100.0,112090.0,0.00015085]
[1760148240093,1.41127045,112100.0,112090.0,0.00015085]
[1760148240553,1.44333386,112100.0,112090.0,0.00015085]
[1760148241102,1.78333386,112100.0,112090.0,0.00015085]
[1760148241723,2.06174598,112100.0,112090.0,0.00015085]
[1760148241868,0.7701519,112060.0,112050.0,0.07043184]
[1760148242076,1.65503045,112060.0,112050.0,0.07058277]
[1760148242275,1.75501415,112060.0,112050.0,0.07058277]
[1760148242641,1.75501415,112060.0,112050.0,0.00015093]
[1760148242887,1.75501415,112060.0,112020.0,0.07043184]
[1760148242888,0.4,112040.0,112020.0,0.07043184]
[1760148243146,1.38011855,112040.0,112020.0,0.07093529]
[1760148243302,0.49524,112040.0,112020.0,0.07093529]
[1760148243499,0.34,112040.0,112020.0,0.07093529]
[1760148244116,0.001,112060.0,112030.0,0.0301519]
[1760148244386,0.001,112060.0,112040.0,0.61504872]
[1760148244557,0.001,112060.0,112040.0,0.54461688]
[1760148244942,0.046,112080.0,112020.0,0.03065535]
[1760148245150,0.93087855,112090.0,112030.0,0.88461688]
[1760148245329,0.046,112090.0,112030.0,0.88461688]
[1760148245930,0.4,112100.0,112030.0,0.88461688]
[1760148245931,0.4,112100.0,112040.0,0.07043184]
[1760148246198,0.14124,112110.0,112050.0,0.34]
[1760148246824,0.1253919,112100.0,112030.0,0.54461688]
[1760148247029,0.046,112110.0,112040.0,0.41043184]
[1760148247235,0.046,112110.0,112060.0,0.54461688]
[1760148247454,0.046,112120.0,112060.0,0.54461688]
[1760148247863,0.446,112120.0,112060.0,0.56354951]
[1760148248111,0.446,112140.0,112070.0,0.41043184]
[1760148248321,0.00824525,112140.0,112090.0,0.54461688]
[1760148248525,0.001,112110.0,112100.0,0.3701519]
[1760148248727,0.001,112110.0,112100.0,0.38908453]
[1760148248932,0.00015079,112140.0,112100.0,0.38908453]
[1760148249134,0.00015079,112140.0,112130.0,0.54461688]
[1760148249548,0.00015079,112140.0,112130.0,0.60566065]
[1760148249754,0.00015079,112140.0,112130.0,0.94566065]
[1760148249959,0.00015079,112140.0,112130.0,0.60566065]
[1760148250581,0.00015079,112140.0,112130.0,0.97581255]
[1760148251317,0.00015079,112140.0,112130.0,0.99473234]
[1760148251725,0.00015079,112140.0,112130.0,0.94666065]
[1760148251979,0.00015079,112140.0,112130.0,0.60666065]
[1760148252153,0.00015079,112140.0,112130.0,0.001]
[1760148252709,0.00015079,112140.0,112120.0,0.60566065]
[1760148253541,0.00015079,112140.0,112130.0,0.0301519]
[1760148253691,0.00015079,112140.0,112120.0,0.60566065]
[1760148253898,0.00015079,112140.0,112130.0,0.60566065]
[1760148254103,0.00953228,112140.0,112130.0,0.60566065]
[1760148254322,0.00953228,112140.0,112110.0,0.0301519]
[1760148254323,0.00953228,112140.0,112110.0,0.10058374]
[1760148254542,0.00015079,112140.0,112130.0,0.60566065]
[1760148254754,0.00015079,112140.0,112110.0,0.60566065]
[1760148254964,0.72498937,112170.0,112130.0,0.02334]
[1760148255183,0.04669,112160.0,112130.0,0.62900065]
[1760148255382,0.0549387,112160.0,112130.0,0.62900065]
[1760148255829,0.09695,112150.0,112120.0,0.02334]
[1760148256082,0.0082487,112150.0,112130.0,0.60566065]
[1760148256246,0.0549387,112160.0,112130.0,0.60566065]
[1760148256466,0.0082487,112160.0,112130.0,0.65235065]
[1760148256669,0.22803937,112170.0,112150.0,0.02334]
[1760148257113,0.09695,112160.0,112120.0,0.02349079]
[1760148257296,0.14364,112150.0,112120.0,0.00015079]
[1760148257500,0.5518887,112150.0,112120.0,0.00015079]
[1760148257904,0.49695,112140.0,112120.0,0.00015079]
[1760148258104,0.1051987,112140.0,112120.0,0.00015079]
[1760148258306,0.0082487,112140.0,112120.0,0.00015079]
[1760148258524,0.09695,112140.0,112120.0,0.00015079]
[1760148258698,0.1051987,112140.0,112120.0,0.00015079]
[1760148258899,0.09695,112130.0,112090.0,0.67609249]
[1760148259162,0.09695,112120.0,112090.0,0.67609249]
[1760148259374,0.1051987,112120.0,112090.0,0.67609249]
[1760148259583,0.1051987,112120.0,112090.0,0.07043184]
[1760148259825,0.11342136,112120.0,112090.0,0.07043184]
[1760148260050,0.1051987,112120.0,112080.0,0.02334]
[1760148260273,0.0082487,112120.0,112090.0,0.43378184]
[1760148260522,0.00015074,112130.0,112100.0,0.02335]
[1760148261431,0.00015074,112130.0,112090.0,0.07043184]
[1760148261638,0.00015074,112130.0,112090.0,0.01903875]
[1760148261846,0.09695,112120.0,112080.0,0.02334]
[1760148262051,0.04669,112110.0,112080.0,0.04238576]
[1760148262273,0.14364,112110.0,112080.0,0.04238576]
[1760148262500,0.14364,112110.0,112080.0,0.02334]
[1760148262720,0.09695,112100.0,112070.0,0.02335]
[1760148262928,0.09695,112100.0,112070.0,0.0190539]
[1760148263146,1.02851855,112100.0,112060.0,0.07043184]
[1760148263366,0.88487855,112100.0,112070.0,0.02335]
[1760148263621,0.44669,112110.0,112080.0,0.001]
[1760148263622,0.04669,112110.0,112080.0,0.001]
[1760148264444,0.93156855,112120.0,112080.0,0.02435]
[1760148264670,0.00467804,112100.0,112080.0,0.02003656]
[1760148264872,0.00467804,112100.0,112080.0,0.001]
[1760148265073,0.00467804,112100.0,112090.0,0.02335]
[1760148265280,0.00467804,112100.0,112090.0,0.01903179]
[1760148265484,0.00467804,112100.0,112060.0,0.02335]
[1760148265485,0.00648365,112090.0,112060.0,0.02335]
[1760148265694,0.10162804,112100.0,112060.0,0.04239041]
[1760148265899,0.00467804,112100.0,112060.0,0.11282225]
[1760148266140,0.00467804,112100.0,112060.0,0.08947225]
[1760148266343,0.00467804,112100.0,112070.0,0.02335]
[1760148266556,0.00467804,112100.0,112080.0,0.02335]
[1760148266758,0.00482872,112100.0,112080.0,0.01904041]
[1760148266973,0.00482872,112100.0,112090.0,0.02335]
[1760148267234,0.00482872,112100.0,112090.0,0.07254231]
[1760148267441,0.00829582,112130.0,112100.0,0.34]
[1760148267648,0.00467704,112130.0,112100.0,0.3827972]
[1760148267851,0.04669,112150.0,112110.0,0.01852]
[1760148268058,0.0551367,112150.0,112110.0,0.03752746]
[1760148268271,0.09695,112140.0,112100.0,0.34]
[1760148268471,0.04669,112130.0,112100.0,0.01901286]
[1760148268682,0.05498582,112130.0,112100.0,0.01901286]
[1760148268888,0.04669,112110.0,112080.0,0.12557045]
[1760148269106,0.04669,112110.0,112080.0,0.42945575]
[1760148269107,0.15193522,112110.0,112080.0,0.42945575]
[1760148269527,0.15193522,112110.0,112080.0,0.01902391]
[1760148269745,0.15193522,112110.0,112060.0,0.11270863]
[1760148269746,0.14364,112110.0,112060.0,0.11270863]
[1760148269984,0.04669,112090.0,112060.0,0.08947348]
[1760148270191,0.04669,112090.0,112080.0,0.001]
[1760148270814,0.0301519,112080.0,112060.0,0.00015068]
[1760148271043,0.05201379,112070.0,112060.0,0.00015068]
[1760148271285,0.14896379,112070.0,112060.0,0.00015068]
[1760148271916,0.17911569,112070.0,112060.0,0.00015068]
[1760148272137,1.08899423,112070.0,112060.0,6.8e-07]
[1760148272371,0.45515189,112060.0,112030.0,0.005]
[1760148272579,0.04669,112040.0,112030.0,0.005]
[1760148272783,0.05027322,112040.0,112030.0,0.005]
[1760148272987,0.14722322,112040.0,112030.0,0.005]
[1760148273576,0.14722322,112040.0,112010.0,0.07043184]
[1760148273823,0.14364,112030.0,112010.0,0.07043184]
[1760148274063,1.02851855,112030.0,112010.0,0.07043184]
[1760148274280,1.02851855,112030.0,111980.0,0.10087848]
[1760148274486,0.09695,112020.0,111980.0,0.07642755]
[1760148275137,0.93156855,112030.0,111980.0,0.07642755]
[1760148275776,0.09695,112020.0,111980.0,0.0195587]
[1760148275991,0.14364,112010.0,111980.0,0.0205587]
[1760148276215,0.14364,112010.0,111980.0,0.00150345]
[1760148276421,0.14364,112010.0,111980.0,0.00050345]
[1760148277032,0.95656854,112030.0,111980.0,0.00050345]
[1760148277033,1.05351854,112030.0,111980.0,0.00050345]
[1760148277240,1.02851855,112030.0,111980.0,0.00050345]
[1760148277461,0.14364,112010.0,111980.0,0.00050345]
[1760148278078,0.09695,112000.0,111980.0,0.00050345]
[1760148278277,0.88487855,112010.0,111980.0,0.00050345]
[1760148278491,0.88487855,112010.0,111980.0,0.00150345]
[1760148278917,1.02151855,112010.0,111980.0,0.00150345]
[1760148280151,0.93051855,112010.0,111980.0,0.00150345]
[1760148281185,0.1678419,112030.0,111980.0,0.00150345]
[1760148281392,0.1678419,112030.0,111970.0,0.0004]
[1760148281393,0.091,112020.0,111970.0,0.07043184]
[1760148281588,0.091,112020.0,111970.0,0.07058281]
[1760148282216,0.88487855,112030.0,111970.0,0.08956998]
[1760148283226,0.93051855,112030.0,111970.0,0.09056998]
[1760148284362,0.00068021,111990.0,111970.0,0.08956998]
[1760148284982,0.00068021,111990.0,111970.0,0.01913814]
[1760148285718,0.00068021,111990.0,111970.0,0.02113814]
[1760148286310,0.00068021,111990.0,111980.0,0.0301519]
[1760148286507,0.00068021,111990.0,111980.0,0.04913907]
[1760148287483,0.00068021,111990.0,111980.0,0.76317421]
[1760148287717,0.00068021,111990.0,111980.0,0.81039129]
[1760148287918,0.00068021,111990.0,111980.0,0.91139128]
[1760148288125,0.00068021,111990.0,111980.0,0.8641742]
[1760148288259,0.00068021,111990.0,111980.0,0.92654882]
[1760148288645,0.00068021,111990.0,111980.0,0.92954882]
[1760148288908,0.00068021,111990.0,111980.0,1.67954882]
[1760148289113,0.07043184,112090.0,112030.0,0.39515189]
[1760148289313,0.07043184,112090.0,112040.0,0.43999999]
[1760148289666,0.07043184,112090.0,112040.0,0.34]
[1760148289918,0.11988184,112110.0,112050.0,0.0301519]
[1760148290130,0.21251184,112110.0,112050.0,0.34]
[1760148290315,0.21251184,112110.0,112010.0,0.09999999]
[1760148290316,0.21301497,112110.0,112010.0,0.09999999]
[1760148290513,0.09263,112100.0,112030.0,0.34]
[1760148290717,0.04945,112090.0,112030.0,0.39073955]
[1760148290919,0.04945,112090.0,112030.0,0.01902733]
[1760148290920,0.14208,112090.0,112030.0,0.01902733]
[1760148291124,0.14208,112090.0,112030.0,0.02002733]
[1760148291678,0.14208,112090.0,112030.0,0.01902733]
[1760148292795,0.0301519,112080.0,112030.0,0.01902733]
[1760148293016,0.14208,112070.0,112020.0,0.07043184]
[1760148293221,0.0796019,112060.0,112020.0,0.07043184]
[1760148293428,0.14208,112050.0,112020.0,0.07043184]
[1760148293626,0.04945,112040.0,112020.0,0.07043184]
[1760148293837,0.14208,112040.0,112000.0,0.07043184]
[1760148294050,0.14208,112030.0,112000.0,0.07043184]
[1760148294247,0.04945,112030.0,112000.0,0.07043184]
[1760148294452,0.14208,112030.0,112000.0,0.07043184]
[1760148294847,0.04995251,112040.0,112000.0,0.07043184]
[1760148295370,0.14208,112030.0,112000.0,0.07043184]
[1760148295531,0.04995251,112040.0,112000.0,0.07043184]
[1760148295739,0.04995251,112040.0,112000.0,0.09053144]
[1760148296105,0.04995251,112040.0,111990.0,0.07043184]
[1760148296309,0.14258251,112040.0,111990.0,0.07043184]
[1760148296520,1.02746106,112040.0,111990.0,0.07043184]
[1760148296745,0.14208,112030.0,111990.0,0.07043184]
[1760148296950,0.14208,112020.0,111960.0,0.07043184]
[1760148297173,0.14208,112020.0,111980.0,0.07043184]
[1760148298255,0.14208,112020.0,111980.0,0.07143184]
[1760148299465,1.02695855,112020.0,111980.0,0.07143184]
[1760148299669,1.02695855,112020.0,111980.0,0.001]
[1760148300121,0.00116158,112010.0,111980.0,0.001]
[1760148300353,0.04945,112000.0,111980.0,0.001]
[1760148300772,0.93432855,112020.0,111990.0,5e-05]
[1760148300974,0.04945,112010.0,111960.0,0.11800018]
[1760148301245,1.02695855,112020.0,111980.0,0.001]
[1760148301246,0.93432855,112020.0,111980.0,0.001]
[1760148301494,0.88487855,112020.0,111980.0,0.00115097]
[1760148301682,0.04945,112030.0,112010.0,5e-05]
[1760148301884,0.20648,112020.0,111980.0,0.00015097]
[1760148302246,0.14208,112010.0,111980.0,0.00015097]
[1760148302446,0.04945,112000.0,111980.0,0.00015097]
[1760148302652,0.93432855,112010.0,111980.0,0.00015097]
[1760148303106,1.02695855,112010.0,111980.0,0.00015097]
[1760148303543,0.04945,111990.0,111980.0,0.00015097]
[1760148303749,0.11385,111990.0,111980.0,0.00015097]
[1760148304186,0.20648,111990.0,111980.0,0.00015097]
[1760148304421,0.60648,111990.0,111980.0,0.00015097]
[1760148304726,0.61116345,111990.0,111980.0,0.00015097]
[1760148304879,0.11853345,111990.0,111980.0,0.00015097]
[1760148305886,0.05413345,111990.0,111980.0,0.00015097]
[1760148306088,0.11853345,111990.0,111980.0,0.00015097]
[1760148306295,0.21116345,111990.0,111980.0,0.00015097]
[1760148307498,1.5261939,111990.0,111980.0,0.00015097]
[1760148307950,1.55119389,111990.0,111980.0,0.00015097]
[1760148309134,0.00468345,111990.0,111980.0,0.00015097]
[1760148309300,0.11749345,111990.0,111980.0,0.00015097]
[1760148309499,0.21410345,111990.0,111980.0,0.00015097]
[1760148310098,1.098982,111990.0,111980.0,0.00015097]
[1760148310939,1.098982,111990.0,111950.0,0.07043184]
[1760148311169,1.002372,111990.0,111950.0,0.08976925]
[1760148311407,0.00468345,111990.0,111980.0,5e-05]
[1760148311631,0.00468345,111990.0,111980.0,0.01923633]
[1760148312131,0.00468345,111990.0,111980.0,0.01922867]
[1760148312443,0.00468345,111990.0,111980.0,0.04933057]
[1760148313079,0.00058084,112000.0,111980.0,0.04933057]
[1760148313280,0.00058084,112000.0,111980.0,0.43689891]
[1760148313487,0.00058084,112000.0,111990.0,0.04756834]
[1760148313690,0.00058084,112000.0,111990.0,0.06674701]
[1760148313904,0.00058084,112000.0,111990.0,0.05006673]
[1760148314119,0.00058084,112000.0,111990.0,0.0507821]
[1760148314328,0.00058084,112000.0,111990.0,0.04933057]
[1760148314934,0.00058084,112000.0,111990.0,0.05033057]
[1760148315141,0.00058084,112000.0,111990.0,0.05032141]
[1760148315560,0.00058084,112000.0,111990.0,0.05176733]
[1760148317393,0.00058084,112000.0,111990.0,0.02016951]
[1760148317605,0.04985084,112000.0,111990.0,0.02016951]
[1760148317804,0.14646084,112000.0,111990.0,0.001]
[1760148318138,0.00058084,112000.0,111990.0,0.001]
[1760148318581,0.00058084,112000.0,111990.0,0.02017837]
[1760148319370,0.00058084,112000.0,111970.0,0.07043184]
[1760148319570,0.04985084,112000.0,111990.0,0.001]
[1760148320192,0.00058084,112000.0,111970.0,0.07043184]